fUSD/lending_fUSD_20260302
["ID","MTS","AMOUNT","RATE_DAILY","PERIOD"]
[406983232,1772413839932,-5985.0,0.00017205,2]
[406983233,1772413839943,-1000.0,0.0001726,2]
[406983234,1772413839961,-935.0,0.0001737,2]
[406983235,1772413839972,-1173.52984951,0.00017371,2]
[406983236,1772413839982,-3500.0,0.00017471,2]
[406983237,1772413839993,-1041.0,0.00017471,2]
[406983238,1772413840004,-1340.0,0.00017471,2]
[406983239,1772413840015,-619.0,0.00017471,2]
[406983240,1772413840025,-2600.0,0.000175,6]
[406983241,1772413840037,-500.0,0.00017521,2]
[406983242,1772413840047,-500.0,0.00017521,2]
[406983243,1772413840057,-1000.0,0.00017534,2]
[406983244,1772413840066,-2000.0,0.00017566,2]
[406983245,1772413840075,-500.0,0.000176,6]
[406983246,1772413840083,-187.22783175,0.0001764,2]
[406983247,1772413840092,-500.0,0.000177,6]
[406983248,1772413840101,-2000.0,0.00017705,2]
[406983249,1772413840109,-500.0,0.00017705,2]
[406983250,1772413840118,-1000.0,0.00017726,7]
[406983251,1772413840128,-168.0,0.00017746,2]
[406983252,1772413840137,-717.79777813,0.000178,2]
[406983253,1772413840147,-500.0,0.000178,6]
[406983254,1772413840157,-500.0,0.00017808,2]
[406983255,1772413840168,-500.0,0.00017808,2]
[406983256,1772413840178,-500.0,0.00017808,2]
[406983257,1772413840189,-500.0,0.00017808,2]
[406983258,1772413840201,-500.0,0.00017808,2]
[406983259,1772413840210,-500.0,0.00017808,2]
[406983260,1772413840220,-500.0,0.00017808,2]
[406983261,1772413840229,-266.11369658,0.00017808,2]
[406983262,1772413840240,-500.0,0.00017808,2]
[406983263,1772413840249,-500.0,0.00017808,2]
[406983264,1772413840258,-500.0,0.00017808,2]
[406983265,1772413840268,-500.0,0.00017808,2]
[406983266,1772413840277,-1000.0,0.00017808,2]
[406983267,1772413840285,-717.79777813,0.0001785,2]
[406983268,1772413840295,-98451.4374,0.000179,2]
[406983269,1772413840305,-6760.40496503,0.000179,2]
[406983270,1772413840314,-500.0,0.000179,6]
[406983271,1772413840324,-383.98839337,0.000179,2]
[406983272,1772413840334,-717.79777813,0.000179,2]
[406983273,1772413840344,-168.0,0.00017903,2]
[406983274,1772413840354,-314.1553363,0.00017973,2]
[406983275,1772413840363,-500.0,0.00017973,2]
[406983276,1772413840373,-5800.0,0.00017982,2]
[406983278,1772413840382,-5800.0,0.0001799,2]
[406983280,1772413840392,-599.60298507,0.00017993,2]
[406983282,1772413840402,-320.5436001,0.00017998,2]
[406983284,1772413840412,-5800.0,0.00017999,2]
[406983286,1772413840422,-5800.0,0.00017999,2]
[406983288,1772413840432,-1964067.69396822,0.00018,2]
[406983290,1772413840443,-100253.51903423,0.00018,2]
[406983292,1772413840455,-419915.97275744,0.00018,2]
[406983293,1772413840464,-501725.16512297,0.00018,2]
[406983294,1772413840473,-450657.4876096,0.00018,2]
[406983295,1772413840484,-233.16,0.00018,7]
[406983296,1772413840493,-235.0,0.00018,2]
[406983297,1772413840503,-230.41007743,0.00018,30]
[406983298,1772413840512,-280449.64813421,0.00018,2]
[406983299,1772413840523,-2065083.98229354,0.00018,2]
[406983300,1772413840536,-2075.5,0.00018,2]
[406983301,1772413840570,-505.0,0.00018,2]
[406983305,1772413842534,-452.75675303,0.0001764,2]
[406983306,1772413842592,-686.4960071,0.0001764,2]
[406983307,1772413842602,-12254.06048271,0.00018,2]
[406983308,1772413842614,-1158.91537295,0.00018,2]
[406983309,1772413842650,-1036.94153083,0.00018,2]
[406983310,1772413842661,-16512.63184029,0.00018,2]
[406983311,1772413842673,-7595.19730418,0.00018,2]
[406983312,1772413842711,-5100.93599827,0.00018,2]
[406983333,1772413845748,-8187.96334651,0.00018,2]
[406983348,1772413846460,-7987.12103885,0.00010589,2]
[406983349,1772413846646,-10000.01,0.00010589,2]
[406983350,1772413846758,-10000.01,0.00010589,2]
[406983351,1772413846910,-10000.01,0.00010589,2]
[406983352,1772413847090,-10000.01,0.00010589,2]
[406983353,1772413847210,-10000.01,0.00010589,2]
[406983354,1772413847321,-10000.01,0.00010589,2]
[406983355,1772413847430,-10000.01,0.00010589,2]
[406983356,1772413847556,-10000.01,0.00010589,2]
[406983357,1772413847671,-10000.01,0.00010589,2]
[406983358,1772413857885,-10000.01,0.00010589,2]
[406983359,1772413858032,-10000.01,0.00010589,2]
[406983360,1772413858147,-10000.01,0.00010589,2]
[406983361,1772413858275,-10000.01,0.00010589,2]
[406983362,1772413858397,-10000.01,0.00010589,2]
[406983363,1772413858536,-10000.01,0.00010589,2]
[406983364,1772413858658,-10000.01,0.00010589,2]
[406983365,1772413858880,-10000.01,0.00010589,2]
[406983366,1772413859003,-10000.01,0.00010589,2]
[406983367,1772413859266,-10000.01,0.00010589,2]
[406983368,1772413936281,500.0,9.003e-05,2]
[406983369,1772413943810,458.65918414,9.003e-05,2]
[406983370,1772413943835,41.34081586,9.003e-05,2]
[406983371,1772413944041,500.0,9.003e-05,2]
[406983372,1772413944513,607.81497818,9.003e-05,2]
[406983373,1772413944536,186.76028865,9.003e-05,2]
[406983374,1772413951204,500.0,9.003e-05,2]
[406983375,1772413951680,462.39550539,9.003e-05,2]
[406983376,1772413951704,37.60449461,9.003e-05,2]
[406983377,1772413961947,177.0,0.0001711,117]
[406983378,1772413982922,1111.55129943,9.944e-05,2]
[406983379,1772413989071,-3630.56129943,9.944e-05,2]
[406983380,1772413989095,-2738.88740114,9.944e-05,2]
[406983381,1772414004145,-524.01,0.000102,2]
[406983382,1772414019326,-2167.205,0.00010377,2]
[406983383,1772414019357,-245.372,0.00010377,2]
[406983384,1772414034560,-300.0,0.00010587,2]
[406983385,1772414034589,-300.0,0.00010587,2]
[406983386,1772414041294,300.0,0.00010587,2]
[406983387,1772414049748,-150.0,0.00010588,2]
[406983388,1772414053148,-0.01,0.00010588,2]
[406983389,1772414053163,-4999.99,0.00010588,2]
[406983390,1772414053172,-0.01,0.00010588,2]
[406983391,1772414053345,-249.99,0.00010588,2]
[406983392,1772414053367,-249.99,0.00010589,2]
[406983393,1772414053387,-4500.03,0.00010589,2]
[406983394,1772414053443,-5000.01,0.00010589,2]
[406983395,1772414053553,-5000.01,0.00010589,2]
[406983396,1772414053693,-5000.01,0.00010589,2]
[406983397,1772414053812,-5000.01,0.00010589,2]
[406983398,1772414053921,-5000.01,0.00010589,2]
[406983399,1772414054031,-5000.01,0.00010589,2]
[406983400,1772414054148,-5000.01,0.00010589,2]
[406983401,1772414054276,-5000.01,0.00010589,2]
[406983402,1772414056151,-5000.01,0.00010589,2]
[406983403,1772414056319,-5000.01,0.00010589,2]
[406983404,1772414056436,-5000.01,0.00010589,2]
[406983405,1772414056568,-5000.01,0.00010589,2]
[406983406,1772414056685,-5000.01,0.00010589,2]
[406983407,1772414056825,1062.34374872,0.00010588,3]
[406983408,1772414056838,-5000.01,0.00010589,2]
[406983409,1772414057066,-5000.01,0.00010589,2]
[406983410,1772414057081,-5000.01,0.00010589,2]
[406983411,1772414057166,-5000.01,0.00010589,2]
[406983412,1772414057299,-5000.01,0.00010589,2]
[406983413,1772414058472,255.99226226,0.00010498,2]
[406983414,1772414059179,-5000.01,0.00010589,2]
[406983415,1772414059371,-5000.01,0.00010589,2]
[406983416,1772414059469,-5000.01,0.00010589,2]
[406983417,1772414059611,-5000.01,0.00010589,2]
[406983418,1772414059717,-5000.01,0.00010589,2]
[406983419,1772414059841,-5000.01,0.00010589,2]
[406983420,1772414059965,-5000.01,0.00010589,2]
[406983421,1772414060089,-5000.01,0.00010589,2]
[406983422,1772414060191,-5000.01,0.00010589,2]
[406983423,1772414060323,-5000.01,0.00010589,2]
[406983424,1772414065187,-8381.67398902,0.00010589,2]
[406983425,1772414065212,-5000.01,0.00010589,2]
[406983426,1772414065269,-10000.01,0.00010589,2]
[406983427,1772414065403,-10000.01,0.00010589,2]
[406983428,1772414065525,-10000.01,0.00010589,2]
[406983429,1772414065635,-10000.01,0.00010589,2]
[406983430,1772414065773,-10000.01,0.00010589,2]
[406983431,1772414065902,-10000.01,0.00010589,2]
[406983432,1772414066013,-10000.01,0.00010589,2]
[406983433,1772414066120,-10000.01,0.00010589,2]
[406983434,1772414066351,-10000.01,0.00010589,2]
[406983435,1772414071092,-10000.01,0.00010589,2]
[406983436,1772414071193,-10000.01,0.00010589,2]
[406983437,1772414071376,-10000.01,0.00010589,2]
[406983438,1772414071404,-5000.01,0.00010589,2]
[406983439,1772414071496,-10000.01,0.00010589,2]
[406983440,1772414071607,-10000.01,0.00010589,2]
[406983441,1772414071713,-10000.01,0.00010589,2]
[406983442,1772414071832,-10000.01,0.00010589,2]
[406983443,1772414071970,-10000.01,0.00010589,2]
[406983444,1772414072099,-10000.01,0.00010589,2]
[406983445,1772414077477,-1281.25356487,0.00010498,2]
[406983446,1772414077507,-7437.50287026,0.00010498,2]
[406983447,1772414077562,-10000.01,0.00010589,2]
[406983448,1772414077681,-10000.01,0.00010589,2]
[406983449,1772414077825,-10000.01,0.00010589,2]
[406983450,1772414077937,-10000.01,0.00010589,2]
[406983451,1772414078051,-10000.01,0.00010589,2]
[406983452,1772414078209,-10000.01,0.00010589,2]
[406983453,1772414078312,-10000.01,0.00010589,2]
[406983454,1772414078478,-10000.01,0.00010589,2]
[406983455,1772414306027,-1112.778078,0.00010396,2]
[406983456,1772414307178,2774.453844,0.000104,2]
[406983457,1772414307204,683.82383628,0.000104,2]
[406983458,1772414307233,4316.18616372,0.000104,2]
[406983459,1772414307255,3952.14715949,0.000104,2]
[406983460,1772414307286,1047.86284051,0.000104,2]
[406983461,1772414307309,5000.01,0.000104,2]
[406983462,1772414307330,596.79381815,0.000104,2]
[406983463,1772414307421,4403.21618185,0.000104,2]
[406983464,1772414307442,4017.47801886,0.000104,2]
[406983466,1772414403773,236.0,0.00010448,2]
[406983467,1772414421527,4419.39,0.00010007,2]
[406983468,1772414465789,154.79506181,0.00010362,2]
[406983469,1772414471811,154.79506179,0.00010426,2]
[406983470,1772414506104,35.0298764,0.000102,2]
[406983471,1772414506125,156.7701236,0.000102,2]
[406983472,1772414663482,197.47,0.000104,2]
[406983473,1772414710597,4993.67,4.924e-05,2]
[406983474,1772414710802,6.34,5.183e-05,2]
[406983475,1772414710823,1149.15579404,5.183e-05,2]
[406983476,1772414710843,1149.15579404,5.183e-05,2]
[406983477,1772414710863,1149.15579404,5.183e-05,2]
[406983478,1772414710888,1149.15579404,5.183e-05,2]
[406983479,1772414710914,390.70682384,5.183e-05,2]
[406983480,1772414711028,4993.67,5.442e-05,2]
[406983481,1772414711239,4993.67,5.701e-05,2]
[406983482,1772414711459,4993.67,5.961e-05,2]
[406983483,1772414711836,4993.67,6.22e-05,2]
[406983484,1772414711866,4993.67,6.479e-05,2]
[406983485,1772414712184,4993.67,6.738e-05,2]
[406983486,1772414712412,4993.67,6.997e-05,2]
[406983487,1772414712632,4993.67,7.256e-05,2]
[406983488,1772414712870,4993.67,7.516e-05,2]
[406983489,1772414713253,4993.67,7.775e-05,2]
[406983490,1772414713301,4993.67,8.034e-05,2]
[406983491,1772414713517,4993.67,8.293e-05,2]
[406983492,1772414713951,4993.67,8.552e-05,2]
[406983493,1772414714165,4993.67,8.811e-05,2]
[406983494,1772414714363,4993.67,9.07e-05,2]
[406983495,1772414714574,4993.67,9.33e-05,2]
[406983496,1772414714775,4993.67,9.589e-05,2]
[406983497,1772414716412,-6.34,9.848e-05,2]
[406983498,1772414749594,-12.68,9.848e-05,2]
[406983499,1772414964505,939.01,9.6e-05,2]
[406983500,1772414969839,1036.32016175,0.00010487,3]
[406983508,1772415031614,-229.0,9.62e-05,2]
[406983509,1772415031624,-510.83242181,9.62e-05,2]
[406983510,1772415031658,-190.84124873,9.62e-05,2]
[406983511,1772415031668,-3852.83,9.63e-05,2]
[406983512,1772415031678,-1200.0,9.683e-05,2]
[406983513,1772415031688,-5000.0,9.684e-05,2]
[406983514,1772415031698,-300.74748455,9.739e-05,2]
[406983515,1772415031708,-300.0,9.847e-05,2]
[406983516,1772415031718,-300.0,9.847e-05,2]
[406983517,1772415031727,-300.0,9.847e-05,2]
[406983518,1772415031737,-4974.65,9.848e-05,2]
[406983519,1772415031747,-243.95235,9.879e-05,2]
[406983520,1772415031756,-507.70481139,9.949e-05,2]
[406983521,1772415031766,-154.79506179,0.00010215,2]
[406983522,1772415031775,-150.0,0.00010315,2]
[406983523,1772415031785,-150.0,0.0001037,2]
[406983524,1772415031794,-251.4432,0.00010388,2]
[406983525,1772415031804,-1200.0,0.00010398,2]
[406983526,1772415031813,-1071.53819137,0.000104,2]
[406983527,1772415031822,-2545.99929758,0.000104,2]
[406983528,1772415031832,-2441.60622025,0.000104,2]
[406983529,1772415031841,-1959.16280555,0.000104,2]
[406983531,1772415031851,-150.0,0.00010425,2]
[406983533,1772415031860,-439.0,0.00010438,2]
[406983535,1772415031870,-177.19667331,0.00010478,2]
[406983537,1772415031879,-164.66750726,0.00010479,2]
[406983539,1772415031888,-1001.21552028,0.00010487,2]
[406983541,1772415031898,-150.0,0.00010487,2]
[406983543,1772415031907,-500.0,0.00010488,2]
[406983545,1772415031917,-13140.5944662,0.00010488,2]
[406983546,1772415031935,-1422.63899574,0.00010488,2]
[406983548,1772415031946,-164871.35975334,0.00010488,2]
[406983550,1772415031959,-81789.0744053,0.00010488,2]
[406983551,1772415031970,-69789.03864209,0.00010488,2]
[406983552,1772415031982,-86073.73677309,0.00010488,2]
[406983553,1772415031994,-911.54092728,0.00010488,2]
[406983554,1772415032005,-465.18605663,0.00010488,2]
[406983555,1772415032017,-1703.04317917,0.00010488,2]
[406983556,1772415032029,-2920.0,0.00010488,2]
[406983557,1772415032041,-18873.19327658,0.00010488,2]
[406983558,1772415032053,-2410.62805522,0.00010488,2]
[406983559,1772415032064,-716.51117773,0.00010488,2]
[406983560,1772415032075,-2518.78506904,0.00010488,2]
[406983561,1772415032086,-8113.46528437,0.00010488,2]
[406983567,1772415037820,-3011.24572918,0.00010488,2]
[406983568,1772415037831,-4513.87389926,0.00010488,2]
[406983569,1772415037842,-3975.2347918,0.00010488,2]
[406983570,1772415037854,-3243.50950443,0.00010488,2]
[406983571,1772415037864,-1744.29632832,0.00010488,2]
[406983572,1772415037875,-3403.96263859,0.00010488,2]
[406983573,1772415037941,-4005.0538,0.00010488,2]
[406983574,1772415037953,-2020384.02724664,0.00010488,2]
[406983575,1772415037962,-317.3353,0.00010488,2]
[406983576,1772415037971,-2500.0,0.00010489,2]
[406983577,1772415037980,-170.66150816,0.00010489,2]
[406983578,1772415037989,-940.24174906,0.00010499,2]
[406983579,1772415037998,-5000.0,0.00010582,2]
[406983580,1772415038007,-151.0,0.00010582,2]
[406983581,1772415038016,-151.0,0.00010582,2]
[406983582,1772415038025,-151.0,0.00010582,2]
[406983583,1772415038034,-151.0,0.00010582,2]
[406983584,1772415038043,-151.0,0.00010582,2]
[406983585,1772415038052,-151.0,0.00010582,2]
[406983586,1772415038061,-151.0,0.00010582,2]
[406983587,1772415038071,-164.0,0.00010584,2]
[406983588,1772415038080,-500.0,0.00010588,2]
[406983589,1772415038090,-500.0,0.00010588,2]
[406983590,1772415038100,-500.0,0.00010588,2]
[406983591,1772415038109,-500.0,0.00010588,2]
[406983592,1772415038119,-500.0,0.00010588,2]
[406983593,1772415038128,-578.69822653,0.00010588,2]
[406983594,1772415038138,-500.0,0.00010588,2]
[406983595,1772415038147,-500.0,0.00010588,2]
[406983596,1772415038157,-500.0,0.00010588,2]
[406983597,1772415038166,-500.0,0.00010588,2]
[406983598,1772415038176,-500.0,0.00010588,2]
[406983599,1772415038187,-500.0,0.00010588,2]
[406983600,1772415038196,-500.0,0.00010588,2]
[406983601,1772415038206,-500.0,0.00010588,2]
[406983602,1772415038216,-500.0,0.00010588,2]
[406983603,1772415038226,-500.0,0.00010588,2]
[406983604,1772415038235,-500.0,0.00010588,2]
[406983605,1772415038245,-500.0,0.00010588,2]
[406983606,1772415038255,-500.0,0.00010588,2]
[406983607,1772415038265,-350.0,0.00010588,2]
[406983609,1772415038275,-500.0,0.00010588,2]
[406983611,1772415038284,-500.0,0.00010588,2]
[406983613,1772415038294,-184.40455728,0.00010588,2]
[406983615,1772415038304,-500.0,0.00010588,2]
[406983617,1772415038317,-500.0,0.00010588,2]
[406983619,1772415038327,-500.0,0.00010588,2]
[406983621,1772415038336,-500.0,0.00010588,2]
[406983623,1772415038346,-500.0,0.00010588,2]
[406983625,1772415038357,-500.0,0.00010588,2]
[406983627,1772415038366,-179.48878829,0.00010588,2]
[406983629,1772415038376,-177.26749081,0.00010588,2]
[406983631,1772415038386,-500.0,0.00010588,2]
[406983633,1772415038396,-164.61479743,0.00010588,2]
[406983635,1772415038405,-500.0,0.00010588,2]
[406983637,1772415038415,-500.0,0.00010588,2]
[406983639,1772415038424,-500.0,0.00010588,2]
[406983641,1772415038433,-500.0,0.00010588,2]
[406983643,1772415038443,-200.0,0.00010588,2]
[406983645,1772415038452,-500.0,0.00010588,2]
[406983647,1772415038462,-500.0,0.00010588,2]
[406983649,1772415038471,-500.0,0.00010588,2]
[406983651,1772415038480,-500.0,0.00010588,2]
[406983653,1772415038490,-500.0,0.00010588,2]
[406983655,1772415038499,-500.0,0.00010588,2]
[406983657,1772415038508,-500.0,0.00010588,2]
[406983659,1772415038518,-500.0,0.00010588,2]
[406983661,1772415038528,-500.0,0.00010588,2]
[406983663,1772415038537,-500.0,0.00010588,2]
[406983665,1772415038547,-500.0,0.00010588,2]
[406983667,1772415038557,-500.0,0.00010588,2]
[406983669,1772415038567,-500.0,0.00010588,2]
[406983671,1772415038576,-500.0,0.00010588,2]
[406983674,1772415038586,-500.0,0.00010588,2]
[406983676,1772415038595,-500.0,0.00010588,2]
[406983678,1772415038605,-627.14126578,0.00010588,2]
[406983680,1772415038614,-500.0,0.00010588,2]
[406983682,1772415038624,-500.0,0.00010588,2]
[406983684,1772415038633,-500.0,0.00010588,2]
[406983686,1772415038642,-500.0,0.00010588,2]
[406983688,1772415038652,-500.0,0.00010588,2]
[406983690,1772415038661,-500.0,0.00010588,2]
[406983692,1772415038671,-500.0,0.00010588,2]
[406983694,1772415038681,-500.0,0.00010588,2]
[406983696,1772415038690,-500.0,0.00010588,2]
[406983698,1772415038700,-500.0,0.00010588,2]
[406983700,1772415038709,-500.0,0.00010588,2]
[406983702,1772415038719,-500.0,0.00010588,2]
[406983703,1772415038728,-500.0,0.00010588,2]
[406983704,1772415038737,-500.0,0.00010588,2]
[406983705,1772415038746,-500.0,0.00010588,2]
[406983706,1772415038754,-300.0,0.00010588,2]
[406983707,1772415038764,-500.0,0.00010588,2]
[406983708,1772415038773,-500.0,0.00010588,2]
[406983709,1772415038782,-1733.764,0.00010588,2]
[406983710,1772415038791,-196.297,0.00010588,2]
[406983711,1772415038801,-303.91,0.00010588,2]
[406983712,1772415038810,-1532.60673339,0.00010589,2]
[406983713,1772415038820,-1500.0,0.00010589,2]
[406983714,1772415038829,-480.75371175,0.00010589,2]
[406983715,1772415038838,-250.0,0.00010593,2]
[406983716,1772415038847,-5000.0,0.00010593,2]
[406983717,1772415038857,-555.0,0.00010598,2]
[406983718,1772415038866,-555.0,0.00010598,2]
[406983719,1772415038875,-1000.0,0.00010599,2]
[406983720,1772415038885,-937.0,0.00010602,2]
[406983721,1772415038895,-393.0,0.00010605,2]
[406983722,1772415038904,-269.0,0.00010626,2]
[406983723,1772415038913,-405.0,0.00010648,2]
[406983724,1772415038923,-1680.0,0.00010651,2]
[406983725,1772415038931,-555.0,0.000107,2]
[406983726,1772415038942,-500.0,0.000107,3]
[406983727,1772415038951,-957.0,0.00010737,2]
[406983729,1772415038961,-555.0,0.000108,2]
[406983731,1772415038970,-1000.0,0.000108,3]
[406983733,1772415038979,-300.0,0.00010832,2]
[406983735,1772415038990,-420.0,0.00010832,2]
[406983737,1772415038999,-420.0,0.00010832,2]
[406983739,1772415039009,-250.0,0.00010833,2]
[406983741,1772415039018,-5000.0,0.00010833,2]
[406983743,1772415039030,-500.0,0.00010862,2]
[406983745,1772415039039,-303.91,0.00010862,2]
[406983747,1772415039048,-1500.0,0.000109,3]
[406983749,1772415039058,-166.66,0.00010959,2]
[406983751,1772415039068,-150.0,0.00010959,2]
[406983753,1772415039078,-1665.0,0.00010972,2]
[406983756,1772415039088,-14482.5288197,0.00010999,2]
[406983758,1772415039098,-166.66,0.00011068,2]
[406983760,1772415039108,-511.0,0.00011098,2]
[406983762,1772415039117,-159.69798542,0.00011099,2]
[406983764,1772415039126,-500.0,0.00011136,2]
[406983766,1772415039136,-303.93,0.00011136,2]
[406983768,1772415039145,-575.26,0.00011171,2]
[406983770,1772415039155,-166.66,0.00011178,2]
[406983785,1772415039280,-200.0,0.00011256,2]
[406983787,1772415039296,-500.0,0.0001128,2]
[406983789,1772415039306,-1500.0,0.00011285,2]
[406983791,1772415039319,-166.66,0.00011288,2]
[406983793,1772415039328,-166.66,0.00011397,2]
[406983795,1772415039339,-195.0,0.00011497,2]
[406983797,1772415039349,-195.0,0.00011497,2]
[406983799,1772415039359,-195.0,0.00011497,2]
[406983801,1772415039368,-166.66,0.00011507,2]
[406983803,1772415039377,-255.0,0.00011514,2]
[406983805,1772415039389,-1000.0,0.00011605,2]
[406983807,1772415039398,-2351.0,0.00011717,2]
[406983809,1772415039408,-166.66,0.0001182,2]
[406983811,1772415039418,-304.940438,0.00011855,2]
[406983813,1772415039428,-480.0,0.00011915,2]
[406983815,1772415039438,-587.0,0.00011915,2]
[406983817,1772415039447,-261.98314069,0.00012013,2]
[406983819,1772415039457,-36660.76,0.00012055,2]
[406983821,1772415039467,-500.0,0.0001207,2]
[406983823,1772415039476,-500.0,0.0001207,2]
[406983825,1772415039486,-500.0,0.0001207,2]
[406983827,1772415039507,-500.0,0.0001207,2]
[406983829,1772415039519,-500.0,0.0001207,2]
[406983831,1772415039529,-500.0,0.0001207,2]
[406983833,1772415039539,-500.0,0.0001207,2]
[406983835,1772415039548,-500.0,0.0001207,2]
[406983837,1772415039558,-500.0,0.0001207,2]
[406983839,1772415039567,-500.0,0.0001207,2]
[406983841,1772415039577,-166.66,0.00012211,2]
[406983843,1772415039586,-166.66,0.00012601,2]
[406983845,1772415039595,-433.0,0.00012647,2]
[406983847,1772415039605,-3292.0,0.00012888,2]
[406983849,1772415039614,-166.66,0.00012991,2]
[406983851,1772415039624,-1000.0,0.00013056,2]
[406983853,1772415039633,-793.0,0.00013106,2]
[406983855,1772415039644,-250.0,0.00013326,2]
[406983857,1772415039654,-166.66,0.00013381,2]
[406983859,1772415039663,-3852.83,0.00013481,2]
[406983861,1772415039673,-166.66,0.00013771,2]
[406983863,1772415039684,-453.0,0.00013884,2]
[406983865,1772415039695,-2100.0,0.000139,5]
[406983867,1772415039704,-331.3361969,0.00014097,2]
[406983869,1772415039714,-187.12474316,0.00014097,2]
[406983871,1772415039723,-500.0,0.00014097,2]
[406983873,1772415039733,-455.13067125,0.00014097,2]
[406983875,1772415039743,-169.00501324,0.00014097,2]
[406983878,1772415039752,-1062.34374872,0.00014097,5]
[406983879,1772415039761,-471950.52,0.00014098,2]
[406983881,1772415039771,-516.0,0.0001411,2]
[406983883,1772415039780,-4609.0,0.00014177,2]
[406983885,1772415039789,-170.66150816,0.00014195,2]
[406983887,1772415039799,-940.24174906,0.000142,2]
[406983889,1772415039808,-470.13489494,0.00014253,2]
[406983891,1772415039818,-470.13489494,0.00014253,2]
[406983893,1772415039827,-470.13489494,0.00014253,2]
[406983895,1772415039835,-470.13489494,0.00014253,2]
[406983897,1772415039845,-470.13489494,0.00014253,2]
[406983899,1772415039855,-470.13489494,0.00014253,2]
[406983901,1772415039864,-470.13489494,0.00014253,2]
[406983903,1772415039873,-470.13489494,0.00014253,2]
[406983905,1772415039882,-470.13489494,0.00014253,2]
[406983907,1772415039891,-470.13489494,0.00014253,2]
[406983909,1772415039900,-470.13489494,0.00014253,2]
[406983912,1772415039911,-470.13489494,0.00014253,2]
[406983914,1772415039920,-470.13489491,0.00014253,2]
[406983916,1772415039929,-180.0,0.000144,2]
[406983918,1772415039938,-1000.0,0.00014506,2]
[406983920,1772415039948,-365.928526,0.00014819,7]
[406983922,1772415039957,-160.0,0.00015037,2]
[406983924,1772415039966,-174.09452548,0.00015037,2]
[406983926,1772415039975,-542.717266,0.00015089,7]
[406983928,1772415039985,-2169.840026,0.00015089,7]
[406983930,1772415039994,-578.20924308,0.00015254,2]
[406983932,1772415040003,-644.79446246,0.00015254,2]
[406983934,1772415040012,-668.65185757,0.00015309,2]
[406983936,1772415040021,-693.3919763,0.00015364,2]
[406983938,1772415040031,-719.04747942,0.00015419,2]
[406983940,1772415040040,-745.65223616,0.00015474,2]
[406983942,1772415040049,-773.2413689,0.00015529,2]
[406983944,1772415040058,-801.85129955,0.00015584,2]
[406983946,1772415040068,-831.51979763,0.00015639,2]
[406983948,1772415040077,-862.28603014,0.00015694,2]
[406983950,1772415040086,-894.19061326,0.00015749,2]
[406983952,1772415040096,-927.27566595,0.00015804,2]
[406983954,1772415040106,-961.58486559,0.00015859,2]
[406983956,1772415040116,-997.16350561,0.00015914,2]
[406983958,1772415040125,-1000.0,0.00015957,2]
[406983960,1772415040134,-500.0,0.00016356,2]
[406983962,1772415040143,-1000.0,0.00016356,2]
[406983964,1772415040152,-500.0,0.00016356,2]
[406983966,1772415040162,-150.99,0.00016922,2]
[406983968,1772415040171,-9999.99,0.00016922,2]
[406983970,1772415040180,-299.99,0.00016922,4]
[406983972,1772415040190,-999.99,0.00016922,2]
[406983974,1772415040199,-2706.88,0.00016922,2]
[406983976,1772415040208,-3715.74,0.00016922,2]
[406983978,1772415040217,-150.99,0.00016922,2]
[406983980,1772415040226,-9999.99,0.00016922,2]
[406983982,1772415040235,-3840.15,0.00016922,2]